fUST/lending_fUST_20250302
["ID","MTS","AMOUNT","RATE_DAILY","PERIOD"]
[354992701,1740858651840,-500.0,0.00025479,2]
[354992703,1740858651850,-500.0,0.00025479,2]
[354992705,1740858651859,-500.0,0.00025479,2]
[354992707,1740858651869,-844.97,0.00025479,2]
[354992709,1740858651879,-500.0,0.00025479,2]
[354992711,1740858651888,-500.0,0.00025479,2]
[354992713,1740858651898,-574.28,0.00025479,2]
[354992715,1740858651907,-500.0,0.00025479,2]
[354992717,1740858651917,-761.24,0.00025479,2]
[354992719,1740858651927,-500.0,0.00025479,2]
[354992721,1740858651936,-582.36,0.00025479,2]
[354992723,1740858651946,-500.0,0.00025479,2]
[354992725,1740858651956,-500.0,0.00025479,2]
[354992727,1740858651965,-1023.73,0.00025479,2]
[354992729,1740858651975,-670.61,0.00025479,2]
[354992731,1740858651984,-12925.59,0.00025479,2]
[354992733,1740858651994,-500.0,0.00025479,2]
[354992735,1740858652004,-585.93,0.00025479,2]
[354992737,1740858652013,-24231.35,0.00025479,2]
[354992739,1740858652023,-500.0,0.00025479,2]
[354992741,1740858652033,-500.0,0.00025479,2]
[354992743,1740858652042,-500.0,0.00025479,2]
[354992745,1740858652052,-726.37,0.00025479,2]
[354992747,1740858652061,-1094.43,0.00025479,2]
[354992749,1740858652071,-500.0,0.00025479,2]
[354992751,1740858652081,-500.0,0.00025479,2]
[354992753,1740858652090,-5410.94,0.00025479,2]
[354992755,1740858652100,-500.0,0.00025479,2]
[354992757,1740858652110,-1790.44,0.00025479,2]
[354992759,1740858652120,-396.05,0.00025479,2]
[354992761,1740858652129,-657.95,0.00025479,2]
[354992763,1740858652139,-893.71,0.00025479,2]
[354992765,1740858652148,-3488.0,0.00025479,2]
[354992767,1740858652158,-500.0,0.00025479,2]
[354992769,1740858652167,-500.0,0.00025479,2]
[354992771,1740858652177,-500.0,0.00025479,2]
[354992773,1740858652187,-9463.4,0.00025479,2]
[354992775,1740858652196,-1420.73,0.00025479,2]
[354992777,1740858652206,-289.16070227,0.00025479,2]
[354992780,1740858652216,-602.93,0.00025479,2]
[354992782,1740858652228,-1402.25,0.00025479,2]
[354992783,1740858652242,-500.0,0.00025479,2]
[354992786,1740858652253,-500.0,0.00025479,2]
[354992788,1740858652263,-500.0,0.00025479,2]
[354992790,1740858652273,-5237.63,0.00025479,2]
[354992792,1740858652282,-899.3,0.00025479,2]
[354992794,1740858652291,-970.83,0.00025479,2]
[354992796,1740858652301,-2449.77,0.00025479,2]
[354992798,1740858652311,-500.0,0.00025479,2]
[354992800,1740858652322,-500.0,0.00025479,2]
[354992802,1740858652331,-4396.77,0.00025479,2]
[354992804,1740858652341,-3112.68,0.00025479,2]
[354992806,1740858652350,-1000.0,0.00025479,5]
[354992808,1740858652360,-500.0,0.00025479,2]
[354992810,1740858652370,-500.0,0.00025479,2]
[354992812,1740858652379,-4340.96,0.00025479,2]
[354992814,1740858652389,-500.0,0.00025479,2]
[354992816,1740858652399,-1088.39,0.00025479,2]
[354992818,1740858652408,-2525.31,0.00025479,2]
[354992820,1740858652417,-7864.25,0.00025479,2]
[354992822,1740858652427,-1037.02,0.00025479,2]
[354992824,1740858652436,-500.0,0.00025479,2]
[354992826,1740858652446,-703.67,0.00025479,2]
[354992828,1740858652456,-500.0,0.00025479,2]
[354992830,1740858652466,-2714.35,0.00025479,2]
[354992832,1740858652475,-762.63,0.00025479,2]
[354992834,1740858652485,-500.0,0.00025479,2]
[354992836,1740858652495,-651.29,0.00025479,2]
[354992838,1740858652506,-1430.03,0.00025479,2]
[354992840,1740858652516,-500.0,0.00025479,2]
[354992842,1740858652526,-732.12,0.00025479,2]
[354992844,1740858652536,-7347.84,0.00025479,2]
[354992846,1740858652546,-500.0,0.00025479,2]
[354992848,1740858652555,-528.54,0.00025479,2]
[354992850,1740858652565,-602.49,0.00025479,2]
[354992852,1740858652575,-1910.7,0.00025479,2]
[354992854,1740858652584,-651.81,0.00025479,2]
[354992856,1740858652594,-500.0,0.00025479,2]
[354992858,1740858652604,-145114.8,0.00025479,2]
[354992860,1740858652614,-500.0,0.00025479,2]
[354992862,1740858652624,-2835.51,0.00025479,2]
[354992864,1740858652634,-1053.43,0.00025479,2]
[354992866,1740858652643,-500.0,0.00025479,2]
[354992868,1740858652654,-500.0,0.00025479,2]
[354992870,1740858652663,-500.0,0.00025479,2]
[354992872,1740858652673,-1191.33,0.00025479,2]
[354992874,1740858652683,-1513.15,0.00025479,2]
[354992876,1740858652693,-2839.02,0.00025479,2]
[354992878,1740858652703,-500.0,0.00025479,2]
[354992880,1740858652712,-500.0,0.00025479,2]
[354992882,1740858652721,-1637.74,0.00025479,2]
[354992884,1740858652731,-500.0,0.00025479,2]
[354992886,1740858652741,-1631.75,0.00025479,2]
[354992888,1740858652751,-614.9,0.00025479,2]
[354992890,1740858652760,-3677.1,0.00025479,2]
[354992892,1740858652769,-500.0,0.00025479,2]
[354992894,1740858652779,-500.0,0.00025479,2]
[354992896,1740858652788,-3517.56,0.00025479,2]
[354992898,1740858652798,-1467.3,0.00025479,2]
[354992900,1740858652808,-1086.1,0.00025479,2]
[354992902,1740858652818,-157.7541248,0.00025479,2]
[354992904,1740858652827,-500.0,0.00025515,2]
[354992906,1740858652836,-13682.53,0.00025515,2]
[354992908,1740858652846,-1234.23,0.00025515,2]
[354992910,1740858652855,-466.52124949,0.00025519,2]
[354992912,1740858652865,-184.04647895,0.00025589,2]
[354992913,1740858652875,-1496.14520851,0.000256,4]
[354992916,1740858652885,-687.34,0.00025615,2]
[354992917,1740858652894,-500.0,0.00025615,2]
[354992919,1740858652903,-500.0,0.00025615,2]
[354992921,1740858652913,-500.0,0.00025615,2]
[354992923,1740858652923,-500.0,0.00025615,2]
[354992925,1740858652932,-416.87,0.00025615,2]
[354992927,1740858652942,-805.18,0.00025615,2]
[354992929,1740858652951,-500.0,0.00025615,2]
[354992931,1740858652961,-511.17,0.00025615,2]
[354992933,1740858652971,-500.0,0.00025615,2]
[354992935,1740858652980,-918.32,0.00025615,2]
[354992937,1740858652990,-500.0,0.00025615,2]
[354992939,1740858653000,-500.0,0.00025615,2]
[354992941,1740858653010,-500.0,0.00025615,2]
[354992943,1740858653020,-500.0,0.00025615,2]
[354992945,1740858653030,-500.0,0.00025615,2]
[354992947,1740858653040,-500.0,0.00025615,2]
[354992949,1740858653050,-500.0,0.00025615,2]
[354992951,1740858653059,-500.0,0.00025615,2]
[354992953,1740858653069,-500.0,0.00025615,2]
[354992955,1740858653079,-541.24,0.00025615,2]
[354992957,1740858653088,-695.72,0.00025615,2]
[354992959,1740858653098,-500.0,0.00025615,2]
[354992961,1740858653108,-947.0,0.00025615,2]
[354992963,1740858653118,-500.0,0.00025615,2]
[354992965,1740858653127,-588.4,0.00025615,2]
[354992967,1740858653136,-851.85,0.00025615,2]
[354992969,1740858653146,-872.39,0.00025615,2]
[354992971,1740858653156,-500.0,0.00025615,2]
[354992973,1740858653166,-1385.04,0.00025615,2]
[354992975,1740858653176,-382.79396017,0.00025615,2]
[354992977,1740858653186,-500.0,0.00025615,2]
[354992979,1740858653195,-1229.21,0.00025615,2]
[354992981,1740858653205,-500.0,0.00025615,2]
[354992983,1740858653218,-814.39,0.00025615,2]
[354992985,1740858653230,-500.0,0.00025615,2]
[354992987,1740858653241,-1172.15,0.00025615,2]
[354992989,1740858653250,-500.0,0.00025615,2]
[354992991,1740858653259,-587.83,0.00025615,2]
[354992993,1740858653270,-500.0,0.00025615,2]
[354992995,1740858653280,-500.0,0.00025615,2]
[354992997,1740858653289,-901.51,0.00025615,2]
[354992999,1740858653301,-500.0,0.00025615,2]
[354993001,1740858653312,-500.0,0.00025615,2]
[354993003,1740858653323,-500.0,0.00025615,2]
[354993005,1740858653333,-536.81,0.00025615,2]
[354993007,1740858653342,-500.0,0.00025615,2]
[354993009,1740858653351,-500.0,0.00025615,2]
[354993011,1740858653361,-963.78,0.00025615,2]
[354993013,1740858653371,-975.4,0.00025615,2]
[354993015,1740858653381,-500.0,0.00025615,2]
[354993017,1740858653391,-500.0,0.00025615,2]
[354993019,1740858653400,-500.0,0.00025615,2]
[354993021,1740858653409,-2108.74,0.00025615,2]
[354993023,1740858653419,-500.0,0.00025615,2]
[354993025,1740858653429,-500.0,0.00025615,2]
[354993027,1740858653438,-500.0,0.00025615,2]
[354993029,1740858653447,-1421.5,0.00025615,2]
[354993031,1740858653457,-500.0,0.00025615,2]
[354993033,1740858653467,-1612.04,0.00025615,2]
[354993035,1740858653476,-651.14,0.00025615,2]
[354993037,1740858653485,-500.0,0.00025615,2]
[354993039,1740858653495,-500.0,0.00025615,2]
[354993041,1740858653506,-500.0,0.00025615,2]
[354993043,1740858653515,-500.0,0.00025615,2]
[354993045,1740858653525,-769.69,0.00025615,2]
[354993047,1740858653534,-500.0,0.00025615,2]
[354993049,1740858653544,-500.0,0.00025615,2]
[354993051,1740858653554,-500.0,0.00025615,2]
[354993053,1740858653564,-1982.33,0.00025615,2]
[354993055,1740858653574,-549.29,0.00025615,2]
[354993057,1740858653584,-500.0,0.00025615,2]
[354993059,1740858653594,-500.0,0.00025615,2]
[354993061,1740858653603,-500.0,0.00025615,2]
[354993063,1740858653612,-500.0,0.00025615,2]
[354993065,1740858653622,-500.0,0.00025615,2]
[354993067,1740858653632,-666.88,0.00025615,2]
[354993069,1740858653641,-500.0,0.00025615,2]
[354993071,1740858653652,-641.19,0.00025615,2]
[354993073,1740858653661,-500.0,0.00025615,2]
[354993075,1740858653671,-500.0,0.00025615,2]
[354993077,1740858653680,-708.0,0.00025615,2]
[354993079,1740858653689,-500.0,0.00025615,2]
[354993081,1740858653699,-572.68,0.00025615,2]
[354993083,1740858653708,-521.68,0.00025615,2]
[354993085,1740858653718,-617.2,0.00025615,2]
[354993087,1740858653728,-803.1,0.00025615,2]
[354993089,1740858653737,-1057.58,0.00025615,2]
[354993090,1740858653746,-500.0,0.00025615,2]
[354993092,1740858653756,-1355.33,0.00025615,2]
[354993094,1740858653766,-500.0,0.00025615,2]
[354993096,1740858653776,-500.0,0.00025615,2]
[354993098,1740858653785,-3489.02,0.00025615,2]
[354993100,1740858653794,-784.69,0.00025615,2]
[354993102,1740858653804,-500.0,0.00025615,2]
[354993104,1740858653813,-976.41,0.00025615,2]
[354993106,1740858653823,-512.16,0.00025615,2]
[354993108,1740858653833,-500.0,0.00025615,2]
[354993111,1740858653843,-500.0,0.00025615,2]
[354993112,1740858653853,-500.0,0.00025615,2]
[354993114,1740858653862,-500.0,0.00025615,2]
[354993116,1740858653871,-500.0,0.00025615,2]
[354993118,1740858653881,-940.17,0.00025615,2]
[354993120,1740858653890,-1131.28,0.00025615,2]
[354993122,1740858653900,-500.0,0.00025615,2]
[354993124,1740858653910,-500.0,0.00025619,2]
[354993126,1740858653920,-500.0,0.00025619,2]
[354993128,1740858653929,-1001.65,0.00025619,2]
[354993130,1740858653939,-500.0,0.00025619,2]
[354993132,1740858653949,-500.0,0.00025619,2]
[354993141,1740858654028,-1940.07,0.00025619,2]
[354993143,1740858654038,-1053.94,0.00025619,2]
[354993145,1740858654048,-157.7541248,0.00025699,2]
[354993147,1740858654057,-500.0,0.00025753,2]
[354993149,1740858654067,-158.73012798,0.00025753,2]
[354993151,1740858654076,-500.0,0.00025753,2]
[354993153,1740858654086,-500.0,0.00025753,2]
[354993155,1740858654097,-1356.93,0.00025753,2]
[354993157,1740858654106,-604.9,0.00025753,2]
[354993159,1740858654115,-500.0,0.00025753,2]
[354993160,1740858654125,-500.0,0.00025753,2]
[354993162,1740858654134,-1229.49,0.00025753,2]
[354993164,1740858654144,-151.0,0.00025753,7]
[354993166,1740858654153,-530.69989387,0.00025753,2]
[354993168,1740858654163,-276.596932,0.00025753,7]
[354993170,1740858654172,-500.0,0.00025753,2]
[354993172,1740858654181,-500.0,0.00025753,2]
[354993174,1740858654191,-1294.44,0.00025753,2]
[354993176,1740858654200,-859.51,0.00025753,2]
[354993177,1740858654209,-285.380943,0.00025753,7]
[354993178,1740858654218,-285.380943,0.00025753,7]
[354993179,1740858654229,-875.13,0.00025753,2]
[354993180,1740858654240,-151.0,0.00025753,7]
[354993181,1740858654249,-756.738977,0.00025753,7]
[354993182,1740858654260,-500.0,0.00025753,2]
[354993183,1740858654269,-756.738977,0.00025753,7]
[354993184,1740858654278,-814.68,0.00025753,2]
[354993185,1740858654288,-226.422064,0.00025753,7]
[354993186,1740858654299,-235.618063,0.00025753,7]
[354993187,1740858654308,-226.422064,0.00025753,7]
[354993188,1740858654318,-949.73,0.00025753,2]
[354993189,1740858654327,-1425.19,0.00025753,2]
[354993190,1740858654337,-872.86,0.00025753,2]
[354993191,1740858654346,-511.33,0.00025753,2]
[354993192,1740858654355,-500.0,0.00025753,2]
[354993193,1740858654364,-681.95,0.00025753,2]
[354993194,1740858654373,-825.78,0.00025753,2]
[354993195,1740858654382,-500.0,0.00025753,2]
[354993196,1740858654391,-500.0,0.00025753,2]
[354993197,1740858654400,-800.67,0.00025753,2]
[354993198,1740858654409,-500.0,0.00025753,2]
[354993199,1740858654418,-759.89,0.00025753,2]
[354993200,1740858654427,-1116.87,0.00025753,2]
[354993202,1740858654436,-500.0,0.00025753,2]
[354993204,1740858654445,-601.24,0.00025753,2]
[354993206,1740858654455,-1481.3,0.00025753,2]
[354993208,1740858654464,-500.0,0.00025753,2]
[354993210,1740858654473,-500.0,0.00025753,2]
[354993212,1740858654482,-335.006901,0.00025753,7]
[354993214,1740858654491,-335.006901,0.00025753,7]
[354993216,1740858654502,-540.63,0.00025753,2]
[354993218,1740858654512,-500.0,0.00025753,2]
[354993220,1740858654521,-500.0,0.00025753,2]
[354993222,1740858654530,-151.0,0.00025753,7]
[354993224,1740858654540,-802.35,0.00025753,2]
[354993226,1740858654549,-1400.57,0.00025753,2]
[354993228,1740858654559,-500.0,0.00025753,2]
[354993229,1740858654568,-500.0,0.00025753,2]
[354993231,1740858654577,-1012.06,0.00025753,2]
[354993233,1740858654586,-644.02,0.00025753,2]
[354993235,1740858654595,-500.0,0.00025753,2]
[354993237,1740858654604,-634.27377791,0.00025753,2]
[354993239,1740858654614,-159.185638,0.00025753,7]
[354993241,1740858654624,-559.57,0.00025753,2]
[354993243,1740858654633,-500.0,0.00025753,2]
[354993245,1740858654642,-500.0,0.00025753,2]
[354993247,1740858654653,-159.185638,0.00025753,7]
[354993249,1740858654662,-500.0,0.00025753,2]
[354993251,1740858654671,-844.97,0.00025753,2]
[354993253,1740858654681,-500.0,0.00025753,2]
[354993255,1740858654690,-500.0,0.00025753,2]
[354993257,1740858654700,-574.28,0.00025753,2]
[354993259,1740858654709,-177.362454,0.00025753,7]
[354993261,1740858654719,-500.0,0.00025753,2]
[354993263,1740858654728,-761.24,0.00025753,2]
[354993265,1740858654737,-177.362454,0.00025753,7]
[354993267,1740858654746,-500.0,0.00025753,2]
[354993269,1740858654756,-582.36,0.00025753,2]
[354993271,1740858654765,-500.0,0.00025753,2]
[354993273,1740858654774,-500.0,0.00025753,2]
[354993275,1740858654783,-1023.73,0.00025753,2]
[354993277,1740858654792,-670.61,0.00025753,2]
[354993279,1740858654802,-12925.59,0.00025753,2]
[354993281,1740858654810,-500.0,0.00025753,2]
[354993283,1740858654821,-585.93,0.00025753,2]
[354993285,1740858654830,-79.7948656,0.00025753,2]
[354993388,1740858655807,-803.97,0.00024657,2]
[354993390,1740858655816,-500.0,0.00024931,2]
[354993392,1740858655826,-803.97,0.00024931,2]
[354993393,1740858655835,-375.881,0.00025205,2]
[354993442,1740858656302,-489.25855561,0.00024657,2]
[354993452,1740858656388,-118.88144439,0.00024657,2]
[354993454,1740858656397,-124.119,0.00025205,2]
[354993456,1740858656406,-803.97,0.00025205,2]
[354993458,1740858656416,-500.0,0.00025479,2]
[354993460,1740858656425,-803.97,0.00025479,2]
[354993462,1740858656434,-6673.96360901,0.00025753,2]
[354998784,1740859187234,1000.0,0.00025,30]
[354998785,1740859352269,1004.10533762,0.00025,30]
[354998786,1740859530100,-254.3256035,0.0002273,2]
[354998787,1740859530122,-300.0,0.00022897,2]
[354998788,1740859530143,-3729.19495968,0.00022898,2]
[354998789,1740859630087,-300.0,0.00022897,2]
[354998790,1740859630111,-894.13250787,0.00022898,2]
[354998791,1740859756104,-150.0,0.00022,2]
[354998792,1740859756126,-250.139509,0.00022735,2]
[354998793,1740859756147,-300.0,0.00022897,2]
[354998794,1740859756169,-20276.67253245,0.00022898,2]
[354998795,1740859756190,-250.0,0.00023043,2]
[354998796,1740859756211,-802.8599998,0.00023379,2]
[354998797,1740859756231,-413.16377114,0.00023381,2]
[354998798,1740859756251,-2437.28892656,0.00023486,2]
[354998799,1740859757077,-490.0,0.00023486,2]
[354998800,1740859759118,-214.88104944,0.00023486,2]
[354998801,1740859759140,-94.19073347,0.00023555,2]
[354998802,1740859769151,-166.79671448,0.00023555,2]
[354998803,1740859769177,-96.75443884,0.00023873,2]
[354998866,1740859832596,-300.0,0.00023972,2]
[354998867,1740859832607,-500.0,0.00023973,2]
[354998868,1740859832617,-5.28954648,0.00023973,2]
[354998869,1740859832631,-494.71045352,0.00023973,2]
[354998870,1740859832641,-633.91496447,0.00023973,2]
[354998871,1740859832657,-500.71272102,0.00023973,2]
[354998872,1740859832669,-500.0,0.00023973,2]
[354998873,1740859832680,-500.0,0.00023973,2]
[354998874,1740859832691,-500.0,0.00023973,2]
[354998875,1740859832701,-160.0,0.00023973,2]
[354998876,1740859832712,-500.0,0.00023973,2]
[354998877,1740859832722,-151.0,0.00023986,2]
[354998878,1740859832733,-198.0,0.00023986,2]
[354998879,1740859832743,-553.34,0.0002399,3]
[354998880,1740859832754,-276.67,0.0002399,3]
[354998881,1740859832764,-830.03,0.0002399,3]
[354998882,1740859832774,-500.0,0.00023999,2]
[354998883,1740859832784,-500.0,0.00023999,2]
[354998884,1740859832795,-642.63340359,0.00023999,2]
[354998885,1740859832805,-500.0,0.00023999,2]
[354998886,1740859832815,-399.03001273,0.00023999,2]
[354998887,1740859832825,-15790.88847486,0.00024,2]
[354998892,1740859837794,-500.0,0.00023991,2]
[354998893,1740859837804,-500.0,0.00023991,2]
[354998894,1740859837814,-500.0,0.00023991,2]
[354998895,1740859837824,-542.73010605,0.00023991,2]
[354998896,1740859837834,-500.0,0.00023991,2]
[354998897,1740859837845,-500.0,0.00023991,2]
[354998898,1740859837855,-592.39424506,0.00023991,2]
[354998899,1740859837868,-500.0,0.00023991,2]
[354998900,1740859837878,-500.0,0.00023991,2]
[354998901,1740859837888,-500.0,0.00023991,2]
[354998902,1740859837899,-500.0,0.00023991,2]
[354998903,1740859837909,-500.0,0.00023991,2]
[354998904,1740859837919,-500.0,0.00023991,2]
[354998905,1740859837929,-500.0,0.00023991,2]
[354998906,1740859837938,-500.0,0.00023991,2]
[354998907,1740859837948,-335.88617469,0.00023991,2]
[354998908,1740859837958,-500.0,0.00023991,2]
[354998909,1740859837968,-500.0,0.00023991,2]
[354998910,1740859837978,-500.0,0.00023991,2]
[354998911,1740859837987,-500.0,0.00023991,2]
[354998912,1740859837997,-500.0,0.00023991,2]
[354998913,1740859838007,-500.0,0.00023991,2]
[354998914,1740859838017,-500.0,0.00023991,2]
[354998915,1740859838027,-500.0,0.00023991,2]
[354998916,1740859838036,-500.0,0.00023991,2]
[354998917,1740859838045,-500.0,0.00023991,2]
[354998918,1740859838055,-500.0,0.00023991,2]
[354998919,1740859838064,-500.0,0.00023991,2]
[354998920,1740859838074,-500.0,0.00023991,2]
[354998921,1740859838083,-500.0,0.00023991,2]
[354998922,1740859838094,-500.0,0.00023991,2]
[354998923,1740859838104,-500.0,0.00023991,2]
[354998924,1740859838115,-500.0,0.00023991,2]
[354998925,1740859838125,-500.0,0.00023991,2]
[354998926,1740859838134,-500.0,0.00023991,2]
[354998927,1740859838143,-500.0,0.00023991,2]
[354998928,1740859838154,-500.0,0.00023991,2]
[354998929,1740859838164,-500.0,0.00023991,2]
[354998930,1740859838173,-500.0,0.00023991,2]
[354998931,1740859838182,-500.0,0.00023991,2]
[354998932,1740859838192,-500.0,0.00023991,2]
[354998933,1740859838202,-500.0,0.00023991,2]
[354998934,1740859838212,-601035.1502745,0.00024,2]
[354998935,1740859838222,-478.58575046,0.000242,2]
[354998936,1740859838231,-478.58575046,0.00024289,2]
[354998937,1740859838241,-151.0,0.000243,9]
[354998938,1740859838251,-478.58575046,0.00024379,2]
[354998939,1740859838260,-151.0,0.000244,9]
[354998940,1740859838269,-210.46606341,0.000244,2]
[354998941,1740859838279,-478.58575046,0.00024468,2]
[354998942,1740859838289,-151.0,0.000245,5]
[354998943,1740859838298,-151.0,0.000245,5]
[354998944,1740859838307,-241.90708005,0.00024534,2]
[354998945,1740859838316,-222000.0,0.00024557,2]
[354998946,1740859838325,-478.58575046,0.00024557,2]
[354998947,1740859838334,-421.45,0.000246,7]
[354998948,1740859838344,-151.0,0.000246,8]
[354998949,1740859838353,-151.0,0.000246,8]
[354998950,1740859838364,-151.0,0.000246,7]
[354998951,1740859838373,-321.40188713,0.00024652,2]
[354998952,1740859838382,-500.0,0.00024657,2]
[354998953,1740859838392,-500.0,0.00024657,2]
[354998954,1740859838402,-500.0,0.00024657,2]
[354998955,1740859838410,-505.27103851,0.00024657,2]
[354998956,1740859838419,-500.0,0.00024657,2]
[354998957,1740859838429,-500.0,0.00024657,2]
[354998958,1740859838438,-500.0,0.00024657,2]
[354998959,1740859838447,-500.0,0.00024657,2]
[354998960,1740859838457,-500.0,0.00024657,2]
[354998961,1740859838466,-500.0,0.00024657,2]
[354998962,1740859838475,-500.0,0.00024657,2]
[354998963,1740859838485,-500.0,0.00024657,2]
[354998964,1740859838494,-500.0,0.00024657,2]
[354998965,1740859838503,-1175.78,0.00024657,2]
[354998966,1740859838513,-500.0,0.00024657,2]
[354998967,1740859838522,-500.0,0.00024657,2]
[354998968,1740859838531,-504.51595322,0.00024657,2]
[354998969,1740859838540,-500.0,0.00024657,2]
[354998970,1740859838550,-506.57766474,0.00024657,2]
[354998971,1740859838559,-500.0,0.00024657,2]
[354998972,1740859838568,-500.0,0.00024657,2]
[354998973,1740859838577,-500.0,0.00024657,2]
[354998974,1740859838587,-500.0,0.00024657,2]
[354998975,1740859838599,-500.0,0.00024657,2]
[354998976,1740859838609,-500.0,0.00024657,2]
[354998977,1740859838618,-500.0,0.00024657,2]
[354998978,1740859838627,-500.0,0.00024657,2]
[354998979,1740859838639,-882.1,0.00024657,2]
[354998980,1740859838648,-500.0,0.00024657,2]
[354998981,1740859838657,-500.0,0.00024657,2]
[354998982,1740859838666,-500.0,0.00024657,2]
[354998983,1740859838677,-500.0,0.00024657,2]
[354998984,1740859838687,-500.0,0.00024657,2]
[354998985,1740859838697,-500.0,0.00024657,2]
[354998986,1740859838706,-500.0,0.00024657,2]
[354998987,1740859838716,-500.0,0.00024657,2]
[354998988,1740859838725,-281.91668551,0.00024657,2]
[354998989,1740859838734,-500.0,0.00024657,2]
[354998990,1740859838743,-500.0,0.00024657,2]
[354998991,1740859838752,-500.0,0.00024657,2]
[354998992,1740859838762,-500.0,0.00024657,2]
[354998993,1740859838771,-500.0,0.00024657,2]
[354998994,1740859838780,-500.0,0.00024657,2]
[354998995,1740859838789,-506.5828926,0.00024657,2]
[354998996,1740859838799,-500.0,0.00024657,2]
[354998997,1740859838808,-500.0,0.00024657,2]
[354998998,1740859838818,-500.0,0.00024657,2]
[354998999,1740859838827,-500.0,0.00024657,2]
[354999000,1740859838837,-500.0,0.00024657,2]
[354999001,1740859838846,-548.77044621,0.00024657,2]
[354999002,1740859838855,-500.0,0.00024657,2]
[354999003,1740859838865,-500.0,0.00024657,2]
[354999004,1740859838874,-1783.07,0.00024657,2]
[354999005,1740859838884,-1783.07,0.00024657,2]
[354999006,1740859838893,-1783.07,0.00024657,2]
[354999007,1740859838902,-1783.07,0.00024657,2]
[354999008,1740859838912,-1783.07,0.00024657,2]
[354999009,1740859838921,-500.0,0.00024657,2]
[354999010,1740859838931,-1783.07,0.00024657,2]
[354999011,1740859838940,-1783.07,0.00024657,2]
[354999012,1740859838949,-502.9266679,0.00024657,2]
[354999013,1740859838959,-500.0,0.00024657,2]
[354999014,1740859838968,-500.0,0.00024657,2]
[354999015,1740859838978,-500.0,0.00024657,2]
[354999016,1740859838988,-976.68,0.00024657,2]
[354999017,1740859838998,-500.0,0.00024657,2]
[354999018,1740859839008,-500.0,0.00024657,2]
[354999019,1740859839018,-500.0,0.00024657,2]
[354999020,1740859839027,-500.0,0.00024657,2]
[354999021,1740859839037,-517.12662447,0.00024657,2]
[354999022,1740859839046,-500.0,0.00024657,2]
[354999023,1740859839055,-500.0,0.00024657,2]
[354999024,1740859839065,-500.0,0.00024657,2]
[354999025,1740859839075,-500.0,0.00024657,2]
[354999026,1740859839085,-1000.0,0.00024657,2]
[354999027,1740859839096,-500.0,0.00024657,2]
[354999028,1740859839106,-500.0,0.00024657,2]
[354999029,1740859839116,-500.0,0.00024657,2]
[354999030,1740859839125,-500.0,0.00024657,2]
[354999031,1740859839135,-500.0,0.00024657,2]
[354999032,1740859839144,-500.0,0.00024657,2]
[354999033,1740859839154,-500.0,0.00024657,2]
[354999034,1740859839164,-623.76,0.00024657,2]
[354999035,1740859839174,-517.70690516,0.00024657,2]